bitfinex-derivatives/quotes_ETHF0:USTF0_20250331
["timestamp","ask_amount","ask_price","bid_price","bid_amount"]
[1743415894740,3.2078,1779.7,1779.6,1.12405]
[1743415895732,4.33178,1779.7,1779.6,1.12405]
[1743415895935,1.12405,1779.6,1779.5,2.57809]
[1743415896135,2.62485,1779.6,1779.5,2.57809]
[1743415896337,4.33179,1779.7,1779.6,1.12405]
[1743415896542,1.12405,1779.6,1779.5,1.454]
[1743415896739,4.3318,1779.7,1779.6,1.12405]
[1743415896943,1.12405,1779.6,1779.5,2.57809]
[1743415897143,4.33181,1779.7,1779.6,1.12405]
[1743415897338,3.2078,1779.7,1779.6,1.12405]
[1743415897539,0.00841986,1779.8,1779.7,1.12398]
[1743415897736,3.2078,1780.2,1780.1,1.12373]
[1743415898540,1.1237,1780.2,1780.1,1.12371]
[1743415898742,2.64512,1780.3,1780.2,1.12367]
[1743415898945,1.52991986,1780.3,1780.2,1.12367]
[1743415899950,2.65351986,1780.3,1780.0,5.78311986]
[1743415900147,2.65351986,1780.3,1780.2,1.12367]
[1743415900347,1.52991986,1780.3,1780.2,1.12367]
[1743415900544,2.65351986,1780.3,1780.2,1.12367]
[1743415900944,1.52991986,1780.3,1780.2,1.12367]
[1743415901344,0.00841986,1780.3,1780.2,4.33147]
[1743415901544,0.00841986,1780.3,1780.2,2.57077]
[1743415901939,0.00841986,1780.3,1780.0,3.21621986]
[1743415902151,1.13201986,1780.3,1780.2,1.12367]
[1743415902453,0.00841986,1780.3,1780.2,1.12367]
[1743415902652,1.38301986,1780.3,1780.2,1.12367]
[1743415902847,0.00841986,1780.3,1780.2,1.12367]
[1743415903056,1.13201986,1780.3,1780.1,1.4471]
[1743415903351,1.13201986,1780.3,1780.0,0.00841986]
[1743415903352,1.12373,1780.1,1780.0,0.00841986]
[1743415903749,1.3968,1780.1,1780.0,1.13220986]
[1743415904152,1.13206986,1780.3,1780.2,1.12367]
[1743415904348,1.40521986,1780.3,1780.2,1.12367]
[1743415904653,1.12367,1780.2,1780.1,1.4]
[1743415904852,4.33147,1780.2,1780.1,2.52373]
[1743415905052,1.12373,1780.1,1780.0,0.00841986]
[1743415905252,2.52053,1780.1,1780.0,1.13220986]
[1743415905754,3.81953,1780.1,1780.0,0.00841986]
[1743415905951,2.80949,1780.0,1779.7,1.12396]
[1743415906252,1.12397,1779.8,1779.7,1.12396]
[1743415906444,2.80981,1779.8,1779.2,4.4535]
[1743415906647,1.12417,1779.4,1779.3,2.62518]
[1743415906850,4.33197,1779.4,1779.3,2.62518]
[1743415907152,2.81012,1779.6,1779.4,1.12417]
[1743415907153,2.60925,1779.5,1779.4,1.12417]
[1743415907350,1.12417,1779.4,1779.3,1.501]
[1743415907548,1.12417,1779.4,1779.2,0.00841986]
[1743415907549,1.12423,1779.3,1779.2,1.13267986]
[1743415908056,2.60933,1779.3,1779.2,1.13267986]
[1743415908251,1.4851,1779.3,1779.2,1.13267986]
[1743415908755,3.2078,1779.6,1779.2,2.81913986]
[1743415908958,5.81702,1779.6,1779.5,1.12411]
[1743415909158,5.81702,1779.6,1779.3,2.62519]
[1743415909159,1.12417,1779.4,1779.3,2.62519]
[1743415910454,1.12414,1779.5,1779.4,1.12412]
[1743415910653,2.52924,1779.5,1779.4,1.12412]
[1743415910857,1.12417,1779.4,1779.3,2.62522]
[1743415911057,1.12417,1779.4,1779.3,1.501]
[1743415911460,1.12417,1779.4,1779.3,2.62523]
[1743415911956,4.33197,1779.4,1779.3,1.501]
[1743415912155,1.12423,1779.3,1779.2,0.00841986]
[1743415912354,2.58723,1779.3,1779.2,0.00841986]
[1743415912657,2.58723,1779.3,1779.2,1.13271986]
[1743415914054,2.58723,1779.3,1779.2,0.00841986]
[1743415914455,3.82453,1779.3,1779.2,0.00841986]
[1743415914856,8.06553,1779.3,1779.2,1e-08]
[1743415915356,1.2527,1779.5,1779.2,1.12430001]
[1743415915557,1.2527,1779.5,1779.4,1.12417]
[1743415915859,2.75,1779.5,1779.4,1.12417]
[1743415916060,1.4973,1779.5,1779.4,1.12417]
[1743415916475,3.2078,1779.6,1779.5,1.12411]
[1743415916962,1.4973,1779.7,1779.6,1.12405]
[1743415917164,1.12403,1779.7,1779.6,1.12405]
[1743415917356,5.59577,1779.8,1779.7,1.12398]
[1743415917551,3.2078,1779.8,1779.7,1.12398]
[1743415917863,7.4508,1780.2,1780.1,1.12373]
[1743415918053,3.2078,1780.2,1780.1,1.12373]
[1743415918256,4.33147,1780.2,1780.1,1.12373]
[1743415918856,3.2078,1780.2,1780.1,1.12373]
[1743415919757,0.00841986,1780.3,1780.1,1.12373]
[1743415919758,1e-08,1780.3,1780.2,1.12367]
[1743415919958,1e-08,1780.3,1780.2,5.05687]
[1743415920165,1e-08,1780.3,1780.2,6.29297]
[1743415921158,1e-08,1780.3,1780.2,10.53497]
[1743415921465,1e-08,1780.3,1780.2,8.03597]
[1743415921667,1e-08,1780.3,1780.2,1.4332]
[1743415922164,1.12360001,1780.3,1780.2,1.4332]
[1743415922356,1e-08,1780.3,1780.2,2.55687]
[1743415922761,1e-08,1780.3,1780.2,1.4332]
[1743415922959,1.12360001,1780.3,1780.2,1.4332]
[1743415923166,1.12367,1780.2,1780.1,3.2078]
[1743415923561,1.12367,1780.2,1780.1,4.33153]
[1743415923758,1.12367,1780.2,1780.1,3.2078]
[1743415924163,1e-08,1780.3,1780.1,3.2078]
[1743415924461,1e-08,1780.3,1780.2,2.59377]
[1743415925762,1e-08,1780.3,1780.2,6.81477]
[1743415925968,1e-08,1780.3,1780.2,2.59377]
[1743415926867,1e-08,1780.3,1780.2,4.94647]
[1743415927067,1.12360001,1780.3,1780.2,1.4701]
[1743415927271,1.12360001,1780.3,1780.2,2.59377]
[1743415927462,1.12360001,1780.3,1780.2,1.4701]
[1743415927966,1.12360001,1780.3,1780.2,2.59377]
[1743415927967,1e-08,1780.3,1780.2,2.59377]
[1743415928663,1.12360001,1780.3,1780.2,2.59377]
[1743415929571,1e-08,1780.3,1780.2,2.59377]
[1743415929871,1.12360001,1780.3,1780.2,2.59377]
[1743415930168,1.12360001,1780.3,1780.2,1.4701]
[1743415930367,1.12360001,1780.3,1780.2,2.59377]
[1743415930569,1e-08,1780.3,1780.2,2.59377]
[1743415930768,1.12360001,1780.3,1780.2,1.4701]
[1743415930970,1.12360001,1780.3,1780.2,2.59377]
[1743415931662,1e-08,1780.3,1780.2,2.59377]
[1743415931863,1.12367,1780.2,1780.1,3.2078]
[1743415932062,1.12373,1780.1,1780.0,1.4662]
[1743415932365,1.12405,1779.6,1779.5,2.40296]
[1743415932763,1.12403,1779.7,1779.6,1.12401]
[1743415933266,1.12397,1779.8,1779.7,1.12395]
[1743415933767,1.12402,1779.7,1779.6,1.124]
[1743415934365,12.65971,1780.0,1779.5,1.4901]
[1743415934568,12.65971,1780.0,1779.9,1.12386]
[1743415934569,6.76705,1780.0,1779.9,1.12386]
[1743415934769,5.6432,1780.0,1779.8,1.12389]
[1743415934971,1.12386,1779.9,1779.7,1.12394]
[1743415935268,5.6432,1780.0,1779.6,3.2078]
[1743415935484,6.76704,1780.0,1779.8,1.12389]
[1743415935666,1.2525,1780.0,1779.6,7.18498]
[1743415935866,1.12386,1779.9,1779.8,1.12388]
[1743415936261,1.2525,1780.0,1779.8,1.12392]
[1743415936471,2.37635,1780.0,1779.9,2.59916]
[1743415936667,2.37635,1780.0,1779.9,1.4753]
[1743415936970,3.20780001,1780.3,1779.9,1.4753]
[1743415937271,1.12379,1780.0,1779.9,2.59916]
[1743415937574,2.6512,1780.2,1779.9,1.4753]
[1743415937776,1.12365001,1780.3,1780.2,1.12367]
[1743415937967,1e-08,1780.3,1780.2,4.33147]
[1743415938269,1.12360001,1780.3,1780.2,4.33147]
[1743415938460,1.12360001,1780.3,1780.2,5.80677]
[1743415938669,1.12360001,1780.3,1780.2,4.6831]
[1743415938872,1e-08,1780.3,1780.2,5.80677]
[1743415939268,1.12360001,1780.3,1780.2,5.80677]
[1743415939566,1e-08,1780.3,1780.2,5.80677]
[1743415940174,1.12374,1780.1,1779.9,4.187]
[1743415940373,1.12374,1780.1,1780.0,4.33152]
[1743415940580,1.12373,1780.1,1780.0,4.33154]
[1743415940878,1.12373,1780.1,1780.0,4.33159]
[1743415941376,1.12373,1780.1,1780.0,3.2078]
[1743415941578,1.12379,1780.0,1779.9,1.12383]
[1743415942569,1.12379,1780.0,1779.9,1.12381]
[1743415942570,1.12384,1780.0,1779.9,1.12381]
[1743415942975,2.57858,1780.1,1780.0,1.12379]
[1743415943165,1.12384,1780.0,1779.9,1.1238]
[1743415943369,1.3749,1780.0,1779.9,1.1238]
[1743415943569,1.12374,1780.1,1780.0,1.12379]
[1743415943971,1.12379,1780.1,1780.0,1.12375]
[1743415944475,1.12384,1780.0,1779.9,1.12381]
[1743415944667,1.3749,1780.2,1779.8,4.6922]
[1743415944872,1.12379,1780.1,1780.0,1.12375]
[1743415945073,2.49861,1780.2,1780.1,1.12373]
[1743415945268,1.3749,1780.2,1780.1,1.12373]
[1743415945878,1e-08,1780.3,1780.2,1.12367]
[1743415946274,1.47040001,1780.3,1780.2,1.12367]
[1743415946478,1.12367,1780.2,1780.1,1.4968]
[1743415946676,1.12382,1780.0,1779.9,1.12381]
[1743415946879,1.4704,1780.1,1779.8,3.2078]
[1743415947175,1.4704,1780.1,1779.9,1.12382]
[1743415947176,1.1818,1780.0,1779.9,1.12382]
[1743415947366,1.1818,1780.0,1779.9,2.62062]
[1743415948681,2.30514001,1780.3,1780.2,1.12367]
[1743415949082,1.18150001,1780.3,1780.2,1.12367]
[1743415949282,1.18150001,1780.3,1780.2,2.51427]
[1743415951279,1e-08,1780.3,1780.2,2.51427]
[1743415953288,1e-08,1780.3,1780.2,6.65327]
[1743415953484,1e-08,1780.3,1780.2,10.22877]
[1743415953982,3.2078,1781.0,1780.9,1.12322]
[1743415954181,2.80756,1781.3,1781.1,1.1231]
[1743415954182,1.12299,1781.3,1781.1,1.1231]
[1743415954391,5.52686,1781.4,1781.1,1.1231]
[1743415954581,4.4039,1781.4,1781.1,1.1231]
[1743415954776,1.1961,1781.4,1781.1,8.5019]
[1743415954981,2.80657,1781.9,1781.6,1.12276]
[1743415954982,1.12275,1781.7,1781.6,1.12276]
[1743415955183,0.00841986,1781.3,1781.2,2.56614]
[1743415955489,0.00841986,1781.3,1781.1,3.2078]
[1743415955689,0.00841986,1781.3,1781.2,1.12304]
[1743415955990,0.00841986,1781.3,1781.2,2.56614]
[1743415956386,1.21841986,1781.3,1781.2,2.56614]
[1743415957591,0.00841986,1781.3,1781.2,2.56614]
[1743415957885,1.1811,1781.7,1781.6,1.12278]
[1743415958488,2.30382,1781.7,1781.6,1.12278]
[1743415958883,1.1231,1781.1,1781.0,0.00841986]
[1743415959083,1.12326,1780.9,1780.8,1.12327]
[1743415959283,5.52718,1781.0,1780.9,1.12322]
[1743415959481,3.2078,1781.1,1780.7,3.2078]
[1743415959681,3.2078,1781.1,1781.0,1.12316]
[1743415959877,4.3309,1781.1,1781.0,1.12316]
[1743415960391,0.00841986,1781.2,1781.1,1.1231]
[1743415964391,1.13145986,1781.2,1781.1,1.1231]
[1743415964892,1.49091986,1781.2,1781.1,1.1231]
[1743415965887,0.00841986,1781.2,1781.1,1.1231]
[1743415966190,1.13148986,1781.2,1781.1,1.1231]
[1743415966393,0.00841986,1781.2,1781.1,1.1231]
[1743415967597,1.1231,1781.1,1781.0,2.63543]
[1743415967896,3.2078,1781.1,1781.0,1.12316]
[1743415968189,3.2078,1781.1,1781.0,2.57656]
[1743415968495,4.3309,1781.1,1781.0,2.57656]
[1743415968788,3.2078,1781.1,1781.0,2.57656]
[1743415969493,1.13145986,1781.2,1781.1,1.1231]
[1743415969695,0.00841986,1781.2,1781.1,1.1231]
[1743415970389,2.54815986,1781.2,1781.1,1.1231]
[1743415970597,1.42511986,1781.2,1781.1,1.1231]
[1743415971095,2.54815986,1781.2,1781.1,1.1231]
[1743415972290,1.42511986,1781.2,1781.1,1.1231]
[1743415972591,0.00841986,1781.2,1781.1,1.1231]
[1743415974890,0.00841986,1781.2,1781.1,4.3309]
[1743415975093,0.00841986,1781.2,1781.1,9.9255]
[1743415975592,1.2331,1781.5,1781.4,1.12291]
[1743415975894,5.8598,1781.7,1781.6,1.12278]
[1743415976396,2.652,1781.7,1781.6,1.12278]
[1743415976600,1.4215,1781.7,1781.6,1.12278]
[1743415976799,1.2805,1781.8,1781.7,1.12272]
[1743415976800,1.28891986,1781.8,1781.7,1.12272]
[1743415977397,0.00841986,1781.8,1781.7,1.12272]
[1743415978196,1.13107986,1781.8,1781.7,2.60712]
[1743415978393,2.56857986,1781.8,1781.7,2.60712]
[1743415978596,1.13107986,1781.8,1781.7,2.60712]
[1743415978795,0.00841986,1781.8,1781.7,2.60712]
[1743415980091,1e-08,1781.8,1781.7,10.11492]
[1743415980897,1.12266001,1781.8,1781.7,1.4844]
[1743415981094,1.12303,1781.3,1781.1,3.2078]
[1743415981303,1.12297,1781.3,1781.2,2.58931]
[1743415981501,1.12294,1781.4,1781.3,1.12293]
[1743415981702,1.12297,1781.3,1781.2,2.58929]
[1743415982098,1.12297,1781.3,1781.2,1.4663]
[1743415982298,4.33077,1781.3,1781.2,1.4663]
[1743415982499,4.33077,1781.3,1781.2,2.58934]
[1743415982897,4.33077,1781.3,1781.2,1.4663]
[1743415983297,4.33077,1781.3,1780.9,1.13159986]
[1743415983298,6.01534,1781.3,1780.9,1.13159986]
[1743415983507,4.33096,1781.0,1780.9,2.51099986]
[1743415983806,4.33096,1781.0,1780.9,1.38781986]
[1743415984402,4.33096,1781.0,1780.9,2.51103986]
[1743415984804,3.2078,1781.0,1780.9,2.51103986]
[1743415985106,4.33096,1781.0,1780.9,1.38781986]
[1743415985306,3.2078,1781.0,1780.9,2.51103986]
[1743415985504,1.12316,1781.0,1780.9,1.38781986]
[1743415985699,4.33096,1781.0,1780.9,1.38781986]
[1743415985897,1.12341,1780.6,1780.5,1.2124]
[1743415986102,4.33121,1780.6,1780.5,1.2124]
[1743415986306,1.1236,1780.4,1780.2,4.4963]
[1743415986499,1.12362,1780.3,1780.2,1.12362]
[1743415986705,1.12362,1780.3,1780.0,7.11335]
[1743415986706,4.3314,1780.4,1780.3,1.12359]
[1743415986904,1.12363,1780.3,1780.2,1.12363]
[1743415987104,3.2078,1780.4,1780.3,1.1236]
[1743415987105,4.3314,1780.4,1780.3,1.1236]
[1743415987407,1.12354,1780.4,1780.3,2.52396]
[1743415987711,0.00841986,1780.5,1780.4,1.12354]
[1743415987910,0.00841986,1780.5,1780.4,2.52394]
[1743415989011,3.2078,1780.9,1780.6,2.80844]
[1743415989212,3.2078,1781.1,1781.0,1.12316]
[1743415989711,1.12313,1781.1,1781.0,1.12311]
[1743415990212,1.13150986,1781.2,1781.1,1.12308]
[1743415990613,1.13149986,1781.2,1781.1,1.1231]
[1743415990806,1.12313,1781.1,1781.0,1.12312]
[1743415991410,1.12316,1781.0,1780.9,2.44399]
[1743415991612,1.12316,1781.0,1780.9,1.12319]
[1743415992919,1.12315,1781.1,1781.0,1.12314]
[1743415994612,0.00841986,1781.2,1781.1,1.1231]
[1743415995012,1.13145986,1781.2,1781.1,1.1231]
[1743415995209,0.00841986,1781.2,1781.1,1.1231]
[1743415995414,1.13145986,1781.2,1781.1,1.1231]
[1743415995910,0.00841986,1781.2,1781.1,1.1231]
[1743415996913,0.00841986,1781.2,1781.1,2.343]
[1743415997115,3.2078,1781.7,1781.6,1.12278]
[1743415997420,3.2078,1781.7,1781.5,5.39178]
[1743415997621,2.58848,1781.6,1781.5,1.12278]
[1743415997914,5.53196,1781.7,1781.6,1.12278]
[1743415998621,1.12278,1781.6,1781.5,1.13120986]
[1743415998821,5.53197,1781.7,1781.6,1.12278]
[1743415999124,1.12278,1781.6,1781.5,0.00841986]
[1743415999310,2.58848,1781.6,1781.5,0.00841986]
[1743415999715,3.86058,1781.6,1781.5,0.00841986]
[1743416001225,2.58848,1781.6,1781.5,0.00841986]
[1743416001521,1.12278,1781.6,1781.5,0.00841986]
[1743416001722,5.53194,1781.7,1781.6,1.12278]
[1743416002724,4.4092,1781.7,1781.6,1.12278]
[1743416003225,5.53192,1781.7,1781.6,1.12278]
[1743416003625,5.53192,1781.7,1781.5,0.00841986]
[1743416003626,1.12278,1781.6,1781.5,1.13122986]
[1743416003823,2.59418,1781.6,1781.5,1.13122986]
[1743416004026,3.2078,1781.7,1781.6,1.12278]
[1743416004220,0.00841986,1781.8,1781.5,6.74441986]
[1743416004420,1e-08,1781.8,1781.7,1.12272]
[1743416004821,1e-08,1781.8,1781.7,2.62342]
[1743416005125,1e-08,1781.8,1781.7,6.91242]
[1743416005328,1e-08,1781.8,1781.7,2.62342]
[1743416005515,1e-08,1781.8,1781.7,6.91042]
[1743416005920,1e-08,1781.8,1781.7,2.62342]
[1743416006129,1e-08,1781.8,1781.7,6.90842]
[1743416008230,1e-08,1781.8,1781.7,9.40842]
[1743416008930,1e-08,1781.8,1781.7,2.62342]
[1743416012028,1e-08,1781.8,1781.7,5.12342]
[1743416015124,1e-08,1781.8,1781.7,6.41292]
[1743416016032,1e-08,1781.8,1781.7,6.97452]
[1743416016245,1e-08,1781.8,1781.7,34.57452]
[1743416021836,1.2266,1782.4,1782.3,1.12234]
[1743416022037,3.2078,1782.6,1782.5,1.12222]
[1743416022638,4.6769,1782.6,1782.5,1.12222]
[1743416022935,5.79905,1782.6,1782.5,1.12222]
[1743416023931,1.12231,1782.4,1782.3,1.12228]
[1743416024235,1.12239,1782.3,1782.2,1.12236]
[1743416024442,3.78849,1782.3,1782.2,1.12236]
[1743416024738,3.78844,1782.3,1782.2,1.12236]
[1743416025136,3.2078,1782.4,1782.3,1.12234]
[1743416025336,4.33008,1782.4,1782.3,1.12234]
[1743416027141,1.12241,1782.2,1782.1,1.12243]
[1743416027845,3.66441,1782.2,1782.1,1.12243]
[1743416028239,1.12253,1782.1,1781.8,3.2078]
[1743416028445,1.4259,1782.1,1782.0,1.12253]
[1743416028837,1.4259,1782.1,1781.8,2.80665]
[1743416028838,1.12257,1782.0,1781.9,1.12256]
[1743416029038,1.12264,1781.9,1781.8,1.12263]
[1743416029246,2.54854,1781.9,1781.8,1.12263]
[1743416029749,1.12271,1781.8,1781.7,1.1227]
[1743416029941,5.75641,1781.8,1781.7,1.1227]
[1743416031343,1.4259,1781.8,1781.7,1.1227]
[1743416032541,2.54856,1781.8,1781.7,1.1227]
[1743416034050,4.6337,1781.8,1781.6,1.4279]
[1743416034247,2.7157,1781.7,1781.6,2.55068]
[1743416034449,3.83842,1781.7,1781.6,2.55068]
[1743416034751,2.7157,1781.7,1781.6,2.55068]
[1743416037149,3.83842,1781.7,1781.6,2.55068]
[1743416037450,1.12278,1781.6,1781.5,1.13120986]
[1743416037645,2.52768,1781.6,1781.5,1.13120986]
[1743416038350,1.4049,1781.6,1781.5,1.13120986]
[1743416040440,2.52768,1781.6,1781.5,1.13120986]
[1743416041044,5.73548,1781.6,1781.5,1.13120986]
[1743416041654,2.80712,1781.5,1780.8,1.5188]
[1743416041944,1.1233,1780.8,1780.5,1.2239]
[1743416042153,1.4392,1780.7,1780.6,2.64221]
[1743416042849,1.3044,1780.8,1780.7,1.12335]
[1743416043049,3.94289,1780.8,1780.7,2.57315]
[1743416043551,1.1234,1780.7,1780.5,0.00841986]
[1743416043747,2.63861,1780.6,1780.5,0.00841986]
[1743416044547,2.63861,1780.6,1780.0,6.01727]
[1743416044548,4.0152,1780.6,1780.0,7.3738]
[1743416044746,3.2078,1780.4,1780.3,1.12356]
[1743416046148,4.691,1780.4,1780.2,0.00841986]
[1743416046344,5.81457,1780.4,1780.2,0.00841986]
[1743416046751,4.691,1780.4,1780.3,1.1236]
[1743416046951,4.691,1780.4,1780.3,2.5687]
[1743416047350,5.81454,1780.4,1780.3,2.5687]
[1743416048344,4.691,1780.4,1780.3,2.5687]
[1743416049257,3.2078,1780.4,1780.3,2.5687]
[1743416049652,1.3049,1780.5,1780.4,1.12354]
[1743416049862,3.2078,1780.6,1780.5,1.12348]
[1743416050255,3.2078,1780.6,1780.4,2.53029]
[1743416050451,4.33127,1780.6,1780.4,2.53029]
[1743416050649,4.33127,1780.6,1780.5,1.4068]
[1743416050852,3.2078,1780.6,1780.5,2.53028]
[1743416051758,4.33121,1780.6,1780.5,2.53028]
[1743416052853,3.2078,1780.6,1780.5,2.53028]
[1743416053058,4.33121,1780.6,1780.5,2.53028]
[1743416053556,3.21621986,1780.8,1780.7,1.12335]
[1743416053856,3.2078,1781.3,1781.2,1.12304]
[1743416055360,0.00841986,1781.4,1781.3,1.12297]
[1743416057162,0.00741986,1781.4,1781.3,1.12297]
[1743416057661,0.00741986,1781.4,1781.3,2.50977]
[1743416064062,4.4095,1781.7,1781.3,4.5946]
[1743416064258,4.6775,1781.9,1781.8,1.12266]
[1743416064467,5.80009,1781.9,1781.8,1.12266]
[1743416064763,3.2078,1781.9,1781.8,1.12266]
[1743416064954,3.2078,1782.1,1781.7,2.7664]
[1743416065159,3.2078,1782.1,1781.9,1.12255]
[1743416065359,1.4697,1782.0,1781.9,1.12255]
[1743416065864,2.59226,1782.0,1781.9,1.12255]
[1743416066259,2.59223,1782.0,1781.9,1.12255]
[1743416066657,1.4697,1782.0,1781.9,1.12255]
[1743416067053,4.3358432,1782.1,1782.0,1.12253]
[1743416067263,3.2133332,1782.1,1782.0,1.12253]
[1743416067671,4.3358032,1782.1,1782.0,1.12253]
[1743416068069,3.2133332,1782.1,1782.0,1.12253]
[1743416068561,0.0055332,1782.1,1782.0,1.12253]
[1743416070877,3.2078,1782.5,1782.4,1.12228]
[1743416071265,3.2078,1782.7,1782.6,1.12215]
[1743416073566,3.2078,1782.9,1782.8,1.12203]
[1743416074166,4.6211,1782.9,1782.8,1.12203]
[1743416074570,3.2078,1782.9,1782.8,1.12203]
[1743416075767,3.2078,1782.9,1782.6,1.2288]
[1743416075967,3.2078,1782.9,1782.8,1.12203]
[1743416075968,4.6211,1782.9,1782.8,1.12203]
[1743416076858,3.2078,1782.9,1782.8,1.12203]
[1743416077482,59.39586,1783.6,1783.1,1.12184]
[1743416077483,1.4472,1783.2,1783.1,1.12184]
[1743416077671,5.56401,1783.3,1783.2,1.12178]
[1743416077871,5.8895,1783.3,1783.2,1.12178]
[1743416078962,5.8895,1783.7,1783.6,1.12152]
[1743416079170,4.4423,1783.7,1783.6,1.12152]
[1743416079361,3.2078,1783.7,1783.6,1.12152]
[1743416080069,1.5037,1784.0,1783.9,1.12134]
[1743416080070,4.7115,1784.0,1783.9,1.12134]
[1743416080662,4.7115,1784.0,1783.8,5.16334]
[1743416080874,5.83282,1784.0,1783.9,1.12134]
[1743416081374,1.12139,1783.9,1783.8,1.12139]
[1743416081575,2.62509,1783.9,1783.8,1.12139]
[1743416081775,1.5037,1783.9,1783.8,1.12139]
[1743416082175,3.2078,1784.0,1783.9,1.12134]
[1743416083070,2.718,1784.1,1784.0,1.12127]
[1743416083274,5.9258,1784.1,1784.0,1.12127]
[1743416083477,7.39807,1784.5,1784.2,1.12115]
[1743416083478,3.2078,1784.3,1784.2,1.12115]
[1743416084774,4.653,1784.3,1784.2,1.12115]
[1743416084981,4.653,1784.3,1784.1,2.55025]
[1743416085196,5.77414,1784.3,1784.2,1.12115]
[1743416085386,5.77414,1784.3,1784.2,2.62565]
[1743416086386,5.77414,1784.3,1784.2,1.5045]
[1743416086791,5.77414,1784.3,1783.9,1.2845]
[1743416087087,4.32907,1784.1,1784.0,1.12125]
[1743416087488,5.83107,1784.1,1784.0,1.12125]
[1743416087991,5.83107,1784.1,1783.6,7.24619]
[1743416088193,1.12149,1783.7,1783.6,1.12146]
[1743416088389,4.32925,1783.8,1783.7,1.12146]
[1743416088590,4.32925,1783.8,1783.5,2.81236986]
[1743416088591,1.12152,1783.6,1783.5,1.45651986]
[1743416088896,4.32932,1783.6,1783.5,2.57810986]
[1743416089097,3.2078,1783.6,1783.5,2.57810986]
[1743416090390,4.32932,1783.6,1783.5,2.57810986]
[1743416090893,4.32932,1783.6,1783.0,10.05968]
[1743416090894,1.1217,1783.4,1783.3,1.12168]
[1743416091090,3.2078,1783.6,1783.3,1.4481]
[1743416091397,4.32932,1783.6,1783.5,1.12159]
[1743416091699,3.2078,1783.6,1783.5,1.12159]
[1743416091898,4.32932,1783.6,1783.5,1.12159]
[1743416092599,4.32932,1783.6,1783.5,2.61619]
[1743416093894,3.2078,1783.6,1783.5,2.61619]
[1743416096092,1.12989985,1783.7,1783.5,1.4946]
[1743416096304,0.00841985,1783.7,1783.6,1.12152]
[1743416096801,1.12987985,1783.7,1783.6,1.12152]
[1743416098102,0.00841985,1783.7,1783.6,1.12152]
[1743416099603,1.12987985,1783.7,1783.6,1.12152]
[1743416099804,0.00841985,1783.7,1783.6,1.12152]
[1743416101204,0.00841985,1783.7,1783.6,2.59172]
[1743416104401,3.2078,1784.0,1783.6,1.4702]
[1743416104605,4.5471,1784.2,1784.1,1.12121]
[1743416104900,5.66826,1784.2,1784.1,1.12121]
[1743416106706,1.12131,1784.0,1783.9,1.12128]
[1743416106909,4.32911,1784.0,1783.9,1.12128]
[1743416107412,10.95231,1784.2,1784.1,1.12121]
[1743416107413,4.5471,1784.2,1784.1,1.12121]
[1743416107714,5.66825,1784.2,1784.1,1.12121]
[1743416108607,1.12121,1784.1,1784.0,2.51073]
[1743416108813,1.391,1784.1,1784.0,2.51073]
[1743416109211,2.51221,1784.1,1784.0,2.51073]
[1743416110212,1.391,1784.1,1784.0,2.51073]
[1743416110715,2.51221,1784.1,1784.0,2.51073]
[1743416111209,2.51221,1784.1,1784.0,1.3895]
[1743416111410,1.12127,1784.0,1783.9,2.6185]
[1743416111711,1.1214,1783.9,1783.8,1.12136]
[1743416112111,2.5324,1783.9,1783.8,1.12136]
[1743416112512,1.411,1783.9,1783.8,1.12136]
[1743416112820,2.53234,1783.9,1783.8,1.12136]
[1743416113117,1.411,1783.9,1783.8,1.12136]
[1743416113313,4.32911,1784.0,1783.9,1.12134]
[1743416113516,3.2078,1784.0,1783.9,1.12134]
[1743416114107,4.32907,1784.0,1783.9,1.12134]
[1743416114509,3.2078,1784.0,1783.9,1.12134]
[1743416114705,5.66829,1784.2,1784.1,1.12121]
[1743416115113,3.2078,1784.2,1784.1,1.12121]
[1743416115809,3.2078,1784.2,1784.1,2.56251]
[1743416116210,5.64126,1784.6,1784.5,1.12096]
[1743416116620,5.6412,1784.6,1784.5,1.12096]
[1743416118110,4.5203,1784.6,1784.5,1.12096]
[1743416118310,1.12096,1784.5,1784.4,2.57070986]
[1743416118505,2.56246,1784.5,1784.4,2.57070986]
[1743416118712,5.6412,1784.6,1784.5,1.12096]
[1743416118914,4.5203,1784.6,1784.5,2.57456]
[1743416119107,3.2078,1784.8,1784.6,1.12083]
[1743416119417,1.12083,1784.7,1784.6,1.4536]
[1743416119714,1.1209,1784.6,1784.5,1.12092]
[1743416119920,4.3287,1784.6,1784.5,2.57452]
[1743416120310,4.3287,1784.6,1784.5,1.4536]
[1743416120622,1.12096,1784.5,1784.4,1.12940986]
[1743416120920,3.76106,1784.5,1784.4,0.00841986]
[1743416121117,3.76106,1784.5,1784.4,1.46201986]
[1743416121413,2.6401,1784.5,1784.4,2.58303986]
[1743416122312,1.2284,1784.5,1784.4,2.58303986]
[1743416122711,3.2078,1784.6,1784.5,1.12096]
[1743416123011,3.2078,1784.6,1784.5,2.61966]
[1743416123719,4.3287,1784.6,1784.5,2.61966]
[1743416124720,3.2078,1784.6,1784.5,2.61966]
[1743416124918,4.3287,1784.6,1784.5,2.61966]
[1743416125119,1.12096,1784.5,1784.4,0.00841986]
[1743416125619,2.63346,1784.5,1784.4,0.00841986]
[1743416126921,2.63346,1784.5,1784.4,1.12943986]
[1743416127820,1.12096,1784.5,1784.4,1.12943986]
[1743416128119,5.75875,1784.6,1784.5,1.12096]
[1743416128321,5.75875,1784.6,1784.5,2.61656]
[1743416128517,4.3287,1784.6,1784.5,2.61656]
[1743416131523,4.3287,1784.6,1784.5,1.4956]
[1743416132221,4.3287,1784.6,1784.5,2.61656]